[Event "*** Titled Tuesday Blitz"]
[Site "Chess.com"]
[Date "2021.03.30"]
[Round "11"]
[White "Orlov_Oleg"]
[Black "Perecke"]
[Result "0-1"]
[WhiteElo "2560"]
[BlackElo "2308"]
[TimeControl "180+1"]
[EndTime "12:07:18 PDT"]
[Termination "Perecke won by checkmate"]

1. Nf3 {[%clk 0:02:52.3]} 1... d5 {[%clk 0:02:57.1]} 2. c4 {[%clk 0:02:53.2]}
2... d4 {[%clk 0:02:57]} 3. e3 {[%clk 0:02:53]} 3... c5 {[%clk 0:02:55.3]} 4. b4
{[%clk 0:02:53.4]} 4... f6 {[%clk 0:02:40.8]} 5. bxc5 {[%clk 0:02:51.1]} 5... e5
{[%clk 0:02:40.7]} 6. exd4 {[%clk 0:02:50]} 6... exd4 {[%clk 0:02:40.3]} 7. Bd3
{[%clk 0:02:50.4]} 7... Bxc5 {[%clk 0:02:38.3]} 8. O-O {[%clk 0:02:48.6]} 8...
Ne7 {[%clk 0:02:37.9]} 9. Nh4 {[%clk 0:02:47.5]} 9... g6 {[%clk 0:02:29.1]} 10.
Ba3 {[%clk 0:02:41.9]} 10... Bxa3 {[%clk 0:02:27.5]} 11. Qa4+ {[%clk 0:02:41.8]}
11... Nbc6 {[%clk 0:02:25.7]} 12. Qxa3 {[%clk 0:02:42.7]} 12... O-O {[%clk
0:02:25]} 13. Re1 {[%clk 0:02:42.1]} 13... Ne5 {[%clk 0:02:21.9]} 14. Bf1 {[%clk
0:02:40.6]} 14... N7c6 {[%clk 0:02:16.5]} 15. d3 {[%clk 0:02:39.4]} 15... f5
{[%clk 0:02:15.2]} 16. g3 {[%clk 0:02:38.6]} 16... g5 {[%clk 0:02:15.1]} 17. Ng2
{[%clk 0:02:32.8]} 17... Nf3+ {[%clk 0:02:14.5]} 18. Kh1 {[%clk 0:02:33.5]}
18... Nxe1 {[%clk 0:02:14.4]} 19. Nxe1 {[%clk 0:02:34.4]} 19... f4 {[%clk
0:02:13.9]} 20. Nd2 {[%clk 0:02:34.8]} 20... Bf5 {[%clk 0:02:12.9]} 21. Bg2
{[%clk 0:02:33.8]} 21... Re8 {[%clk 0:02:10.5]} 22. Ne4 {[%clk 0:02:33.7]} 22...
Ne5 {[%clk 0:02:08.5]} 23. Nd6 {[%clk 0:02:33.2]} 23... Qe7 {[%clk 0:02:01.1]}
24. c5 {[%clk 0:02:30.1]} 24... Rf8 {[%clk 0:01:25.3]} 25. Bxb7 {[%clk 0:02:27]}
25... Rab8 {[%clk 0:01:24.5]} 26. Bd5+ {[%clk 0:02:26.1]} 26... Kh8 {[%clk
0:01:22.4]} 27. Nxf5 {[%clk 0:02:25.7]} 27... Rxf5 {[%clk 0:01:21.1]} 28. Be4
{[%clk 0:02:26.3]} 28... Rff8 {[%clk 0:01:15.2]} 29. Kg2 {[%clk 0:02:26.4]}
29... fxg3 {[%clk 0:01:09.4]} 30. hxg3 {[%clk 0:02:25.9]} 30... g4 {[%clk
0:01:00.3]} 31. Rc1 {[%clk 0:02:22.7]} 31... Nf3 {[%clk 0:00:44.7]} 32. Qa4
{[%clk 0:02:18]} 32... Qf6 {[%clk 0:00:41.2]} 33. Qc2 {[%clk 0:02:00.6]} 33...
Ng5 {[%clk 0:00:27.6]} 34. c6 {[%clk 0:01:57.9]} 34... Nxe4 {[%clk 0:00:25.6]}
35. dxe4 {[%clk 0:01:58.8]} 35... Rbc8 {[%clk 0:00:17.4]} 36. Nd3 {[%clk
0:01:54.1]} 36... Qf3+ {[%clk 0:00:12.3]} 37. Kg1 {[%clk 0:01:54.6]} 37... Qxe4
{[%clk 0:00:13.2]} 38. Qc4 {[%clk 0:01:52.2]} 38... Rf6 {[%clk 0:00:09]} 39. Nf4
{[%clk 0:01:51.2]} 39... Rfxc6 {[%clk 0:00:05]} 40. Qxc6 {[%clk 0:01:48.8]}
40... Rxc6 {[%clk 0:00:04.8]} 41. Rd1 {[%clk 0:01:49.7]} 41... Rc2 {[%clk
0:00:04.6]} 42. a4 {[%clk 0:01:46.6]} 42... Qf3 {[%clk 0:00:04.7]} 43. Re1
{[%clk 0:01:45.8]} 43... Qxf2+ {[%clk 0:00:04.7]} 44. Kh1 {[%clk 0:01:44.4]}
44... Qxe1# {[%clk 0:00:05.6]} 0-1

[Event "*** Titled Tuesday Blitz"]
[Site "Chess.com"]
[Date "2021.03.30"]
[Round "11"]
[White "Caterpiller35"]
[Black "SanchezKelvin"]
[Result "0-1"]
[WhiteElo "2391"]
[BlackElo "2590"]
[TimeControl "180+1"]
[EndTime "12:07:19 PDT"]
[Termination "SanchezKelvin won by resignation"]

1. d4 {[%clk 0:02:59.2]} 1... Nf6 {[%clk 0:02:55.7]} 2. Bg5 {[%clk 0:02:58.6]}
2... Ne4 {[%clk 0:02:53.2]} 3. Bf4 {[%clk 0:02:58.8]} 3... c5 {[%clk 0:02:53.5]}
4. f3 {[%clk 0:02:58.7]} 4... Nf6 {[%clk 0:02:50.9]} 5. dxc5 {[%clk 0:02:58.2]}
5... Qa5+ {[%clk 0:02:50.1]} 6. Qd2 {[%clk 0:02:57.4]} 6... Qxc5 {[%clk
0:02:51]} 7. Nc3 {[%clk 0:02:57.3]} 7... d6 {[%clk 0:02:47.5]} 8. e4 {[%clk
0:02:56.8]} 8... Nc6 {[%clk 0:02:47.5]} 9. O-O-O {[%clk 0:02:57.1]} 9... Qa5
{[%clk 0:02:43.4]} 10. Kb1 {[%clk 0:02:51.4]} 10... Be6 {[%clk 0:02:42.5]} 11.
Nd5 {[%clk 0:02:50.9]} 11... Qxd2 {[%clk 0:02:41.4]} 12. Rxd2 {[%clk 0:02:51.8]}
12... Rc8 {[%clk 0:02:32.9]} 13. Bb5 {[%clk 0:02:47.3]} 13... Nd7 {[%clk
0:02:32.3]} 14. Ne2 {[%clk 0:02:44.9]} 14... a6 {[%clk 0:02:30.8]} 15. Bxc6
{[%clk 0:02:28.8]} 15... bxc6 {[%clk 0:02:30.4]} 16. Nb4 {[%clk 0:02:26.2]}
16... a5 {[%clk 0:02:29.3]} 17. Nd3 {[%clk 0:02:24.5]} 17... g6 {[%clk
0:02:28.9]} 18. Nd4 {[%clk 0:02:23.6]} 18... Bc4 {[%clk 0:02:25.4]} 19. Be3
{[%clk 0:02:14.2]} 19... Bg7 {[%clk 0:02:21.9]} 20. b3 {[%clk 0:02:14.3]} 20...
Ba6 {[%clk 0:02:21.1]} 21. Rhd1 {[%clk 0:02:06.9]} 21... c5 {[%clk 0:02:16.2]}
22. Ne2 {[%clk 0:02:03.6]} 22... c4 {[%clk 0:02:16.5]} 23. Ndf4 {[%clk
0:01:58.6]} 23... O-O {[%clk 0:01:56.6]} 24. Nd5 {[%clk 0:01:47.1]} 24... Rfe8
{[%clk 0:01:55.3]} 25. Nc1 {[%clk 0:01:22.2]} 25... a4 {[%clk 0:01:45.4]} 26. b4
{[%clk 0:00:48.5]} 26... c3 {[%clk 0:01:35.8]} 27. Nxe7+ {[%clk 0:00:47.1]}
27... Rxe7 {[%clk 0:01:29.7]} 28. Rxd6 {[%clk 0:00:48]} 28... Nb8 {[%clk
0:01:28.1]} 29. Bg5 {[%clk 0:00:42.4]} 29... Ree8 {[%clk 0:01:26.2]} 30. a3
{[%clk 0:00:41.8]} 30... Bc4 {[%clk 0:01:23.1]} 31. Nd3 {[%clk 0:00:41.3]} 31...
Bxd3 {[%clk 0:01:12]} 32. R1xd3 {[%clk 0:00:42.2]} 32... Nc6 {[%clk 0:01:10.4]}
33. Ka2 {[%clk 0:00:34.8]} 33... Ne5 {[%clk 0:01:09.6]} 34. R3d5 {[%clk
0:00:31.2]} 34... Nc4 {[%clk 0:01:09.2]} 35. Rd7 {[%clk 0:00:30.7]} 35... Nb6
{[%clk 0:01:07.9]} 0-1

[Event "*** Titled Tuesday Blitz"]
[Site "Chess.com"]
[Date "2021.03.30"]
[Round "11"]
[White "Mihnea2017"]
[Black "GMJustin"]
[Result "1-0"]
[WhiteElo "2453"]
[BlackElo "2294"]
[TimeControl "180+1"]
[EndTime "12:07:23 PDT"]
[Termination "Mihnea2017 won on time"]

1. e4 {[%clk 0:03:00.9]} 1... c5 {[%clk 0:02:50.3]} 2. Nf3 {[%clk 0:03:00.8]}
2... d6 {[%clk 0:02:49.7]} 3. d4 {[%clk 0:03:01]} 3... cxd4 {[%clk 0:02:49.4]}
4. Nxd4 {[%clk 0:03:01.9]} 4... Nf6 {[%clk 0:02:49.2]} 5. Nc3 {[%clk 0:03:02.2]}
5... Nc6 {[%clk 0:02:48.1]} 6. Bg5 {[%clk 0:03:01.4]} 6... e6 {[%clk 0:02:46.9]}
7. Qd2 {[%clk 0:03:01]} 7... Be7 {[%clk 0:02:46.3]} 8. O-O-O {[%clk 0:02:52.4]}
8... Nxd4 {[%clk 0:02:45.3]} 9. Qxd4 {[%clk 0:02:51.7]} 9... O-O {[%clk
0:02:45.7]} 10. f4 {[%clk 0:02:51.2]} 10... Qa5 {[%clk 0:02:31.4]} 11. e5 {[%clk
0:02:49.7]} 11... dxe5 {[%clk 0:02:30.9]} 12. fxe5 {[%clk 0:02:49.6]} 12... Nd5
{[%clk 0:02:18.8]} 13. Bxe7 {[%clk 0:02:45.8]} 13... Nxe7 {[%clk 0:02:18.3]} 14.
Bd3 {[%clk 0:02:36.3]} 14... Nc6 {[%clk 0:01:53.5]} 15. Qh4 {[%clk 0:02:35.9]}
15... g6 {[%clk 0:01:34.7]} 16. Ne4 {[%clk 0:02:34]} 16... Qxe5 {[%clk
0:01:22.1]} 17. Nf6+ {[%clk 0:01:47.1]} 17... Kg7 {[%clk 0:01:21.5]} 18. Rhf1
{[%clk 0:01:48]} 18... h6 {[%clk 0:01:18.7]} 19. Kb1 {[%clk 0:01:45.6]} 19...
Nd4 {[%clk 0:00:54.7]} 20. g4 {[%clk 0:01:39.2]} 20... b6 {[%clk 0:00:34.8]} 21.
Rde1 {[%clk 0:01:36.3]} 21... Qg5 {[%clk 0:00:24.8]} 22. Qf2 {[%clk 0:01:33]}
22... Nc6 {[%clk 0:00:08.1]} 23. h4 {[%clk 0:00:59.8]} 23... Qc5 {[%clk
0:00:06.4]} 24. Qxc5 {[%clk 0:00:53.7]} 24... bxc5 {[%clk 0:00:06.3]} 25. Be4
{[%clk 0:00:54.6]} 25... Bb7 {[%clk 0:00:04.9]} 26. Nd7 {[%clk 0:00:54.9]} 1-0

[Event "*** Titled Tuesday Blitz"]
[Site "Chess.com"]
[Date "2021.03.30"]
[Round "11"]
[White "eduardoperalta"]
[Black "oogee"]
[Result "1-0"]
[WhiteElo "2490"]
[BlackElo "2378"]
[TimeControl "180+1"]
[EndTime "12:07:26 PDT"]
[Termination "eduardoperalta won by resignation"]

1. d4 {[%clk 0:03:00.9]} 1... Nf6 {[%clk 0:02:59.4]} 2. c4 {[%clk 0:03:00.3]}
2... g6 {[%clk 0:02:59.3]} 3. Nc3 {[%clk 0:03:00.2]} 3... Bg7 {[%clk 0:02:59.4]}
4. e4 {[%clk 0:03:00.2]} 4... O-O {[%clk 0:02:58.9]} 5. f3 {[%clk 0:03:00.3]}
5... d6 {[%clk 0:02:57.8]} 6. Bg5 {[%clk 0:02:59.7]} 6... Nbd7 {[%clk
0:02:47.6]} 7. Qd2 {[%clk 0:02:58.8]} 7... a6 {[%clk 0:02:46.2]} 8. Nge2 {[%clk
0:02:58.2]} 8... b5 {[%clk 0:02:45.7]} 9. cxb5 {[%clk 0:02:53.5]} 9... axb5
{[%clk 0:02:45.7]} 10. Nxb5 {[%clk 0:02:53.5]} 10... c6 {[%clk 0:02:46]} 11.
Nbc3 {[%clk 0:02:53.1]} 11... e5 {[%clk 0:02:40.5]} 12. d5 {[%clk 0:02:52.2]}
12... Nb6 {[%clk 0:02:28]} 13. dxc6 {[%clk 0:02:46.5]} 13... Nc4 {[%clk
0:02:25.6]} 14. Qc2 {[%clk 0:02:44.5]} 14... Qa5 {[%clk 0:02:09.9]} 15. b3
{[%clk 0:02:36.1]} 15... Na3 {[%clk 0:02:01]} 16. Qd2 {[%clk 0:02:35.6]} 16...
Be6 {[%clk 0:01:56.9]} 17. Nc1 {[%clk 0:02:33.1]} 17... Rac8 {[%clk 0:01:49.2]}
18. Qb2 {[%clk 0:02:03.3]} 18... Rxc6 {[%clk 0:01:40.4]} 19. Bd2 {[%clk
0:02:02.9]} 19... Qa7 {[%clk 0:01:32.4]} 20. b4 {[%clk 0:01:55.6]} 20... Rb8
{[%clk 0:01:23.3]} 21. Nd3 {[%clk 0:01:50.7]} 21... Nc4 {[%clk 0:01:19.6]} 22.
Qc2 {[%clk 0:01:49.9]} 22... Nxd2 {[%clk 0:01:16]} 23. Qxd2 {[%clk 0:01:49]}
23... Qd4 {[%clk 0:00:51.3]} 24. Rc1 {[%clk 0:01:46.1]} 24... Bh6 {[%clk
0:00:36.4]} 25. Qxh6 {[%clk 0:01:43.2]} 25... Rxc3 {[%clk 0:00:36.4]} 26. Rxc3
{[%clk 0:01:41.7]} 26... Qxc3+ {[%clk 0:00:36.7]} 27. Qd2 {[%clk 0:01:41.1]}
27... Qa1+ {[%clk 0:00:36.7]} 28. Kf2 {[%clk 0:01:38.5]} 28... Bxa2 {[%clk
0:00:33.2]} 29. Rg1 {[%clk 0:01:37.6]} 29... Bc4 {[%clk 0:00:30.3]} 30. Be2
{[%clk 0:01:37]} 30... Qd4+ {[%clk 0:00:29.5]} 31. Qe3 {[%clk 0:01:33.9]} 31...
Qc3 {[%clk 0:00:28.7]} 32. Rc1 {[%clk 0:01:32.2]} 32... Qb3 {[%clk 0:00:27.1]}
33. Qd2 {[%clk 0:01:24.2]} 33... Be6 {[%clk 0:00:23]} 34. Rc3 {[%clk 0:01:22]}
34... Qa4 {[%clk 0:00:22.2]} 35. Qb2 {[%clk 0:01:18.7]} 35... d5 {[%clk
0:00:20.8]} 36. Ra3 {[%clk 0:01:16.9]} 36... Qc6 {[%clk 0:00:19.4]} 37. exd5
{[%clk 0:01:11.9]} 37... Nxd5 {[%clk 0:00:18.8]} 38. Qxe5 {[%clk 0:01:10]} 38...
Nxb4 {[%clk 0:00:17.3]} 39. Qxb8+ {[%clk 0:01:08.8]} 39... Kg7 {[%clk
0:00:16.9]} 40. Qxb4 {[%clk 0:01:07.8]} 1-0

[Event "*** Titled Tuesday Blitz"]
[Site "Chess.com"]
[Date "2021.03.30"]
[Round "11"]
[White "swimmerchess"]
[Black "tsaruk_maks"]
[Result "1-0"]
[WhiteElo "2831"]
[BlackElo "2635"]
[TimeControl "180+1"]
[EndTime "12:07:27 PDT"]
[Termination "swimmerchess won by resignation"]

1. e4 {[%clk 0:03:00.9]} 1... e5 {[%clk 0:02:58.8]} 2. Nf3 {[%clk 0:03:01.3]}
2... Nc6 {[%clk 0:02:59.2]} 3. Bb5 {[%clk 0:03:01.8]} 3... a6 {[%clk 0:02:59.8]}
4. Ba4 {[%clk 0:03:02.3]} 4... Nf6 {[%clk 0:03:00.3]} 5. O-O {[%clk 0:03:02.9]}
5... Be7 {[%clk 0:03:00.3]} 6. Re1 {[%clk 0:03:03.2]} 6... b5 {[%clk 0:02:58.2]}
7. Bb3 {[%clk 0:03:03.7]} 7... O-O {[%clk 0:02:58.9]} 8. d4 {[%clk 0:03:04.2]}
8... d6 {[%clk 0:02:58]} 9. c3 {[%clk 0:03:04]} 9... Bg4 {[%clk 0:02:57.4]} 10.
Be3 {[%clk 0:03:01.6]} 10... exd4 {[%clk 0:02:50.9]} 11. cxd4 {[%clk 0:03:02.5]}
11... Na5 {[%clk 0:02:51.3]} 12. Bc2 {[%clk 0:03:02.7]} 12... Nc4 {[%clk
0:02:50.3]} 13. Bc1 {[%clk 0:03:02.7]} 13... c5 {[%clk 0:02:48.1]} 14. b3 {[%clk
0:03:02.8]} 14... Na5 {[%clk 0:02:43.9]} 15. d5 {[%clk 0:03:01.8]} 15... Nd7
{[%clk 0:02:37.7]} 16. Nbd2 {[%clk 0:02:59.3]} 16... Bf6 {[%clk 0:02:34.9]} 17.
Rb1 {[%clk 0:02:59.2]} 17... c4 {[%clk 0:02:24.2]} 18. h3 {[%clk 0:02:55]} 18...
Bh5 {[%clk 0:02:23.9]} 19. g4 {[%clk 0:02:51.8]} 19... Bg6 {[%clk 0:02:24]} 20.
Nf1 {[%clk 0:02:52.7]} 20... cxb3 {[%clk 0:02:13.8]} 21. axb3 {[%clk 0:02:53.6]}
21... Rc8 {[%clk 0:02:12.9]} 22. Ng3 {[%clk 0:02:45.4]} 22... b4 {[%clk
0:02:06.7]} 23. Be3 {[%clk 0:02:32.9]} 23... Rc3 {[%clk 0:01:48.9]} 24. Nd4
{[%clk 0:02:21.2]} 24... Nc5 {[%clk 0:01:41.6]} 25. Rc1 {[%clk 0:02:00.8]} 25...
Re8 {[%clk 0:01:38.7]} 26. Ndf5 {[%clk 0:01:58.6]} 26... Bxf5 {[%clk 0:01:27.3]}
27. Nxf5 {[%clk 0:01:59.5]} 27... Ncxb3 {[%clk 0:01:27.9]} 28. Rb1 {[%clk
0:01:55.1]} 28... Nc5 {[%clk 0:01:09.3]} 29. Rxb4 {[%clk 0:01:54.8]} 29... Nc4
{[%clk 0:01:08.7]} 30. Bd4 {[%clk 0:01:39.7]} 30... Na3 {[%clk 0:00:41.7]} 31.
Ba4 {[%clk 0:01:25.9]} 31... Nxa4 {[%clk 0:00:32.8]} 32. Rxa4 {[%clk 0:01:26.8]}
32... Rxh3 {[%clk 0:00:27.1]} 33. Kg2 {[%clk 0:01:25.3]} 33... Bxd4 {[%clk
0:00:04.6]} 34. Qxd4 {[%clk 0:01:26.2]} 34... f6 {[%clk 0:00:05.1]} 35. Kxh3
{[%clk 0:01:24.8]} 35... Nc2 {[%clk 0:00:05.5]} 36. Qa7 {[%clk 0:01:25.4]} 1-0

[Event "*** Titled Tuesday Blitz"]
[Site "Chess.com"]
[Date "2021.03.30"]
[Round "11"]
[White "pfalcon1949"]
[Black "zala02"]
[Result "0-1"]
[WhiteElo "1989"]
[BlackElo "2144"]
[TimeControl "180+1"]
[EndTime "12:07:32 PDT"]
[Termination "zala02 won on time"]

1. c4 {[%clk 0:03:00.9]} 1... c6 {[%clk 0:02:59.7]} 2. e4 {[%clk 0:02:58.6]}
2... d5 {[%clk 0:02:59.8]} 3. cxd5 {[%clk 0:02:57.5]} 3... cxd5 {[%clk
0:03:00.7]} 4. exd5 {[%clk 0:02:57.6]} 4... Qxd5 {[%clk 0:03:01.1]} 5. Nc3
{[%clk 0:02:55.6]} 5... Qd8 {[%clk 0:03:00.6]} 6. d4 {[%clk 0:02:54.2]} 6... Nf6
{[%clk 0:02:59.2]} 7. Nf3 {[%clk 0:02:54.4]} 7... Bf5 {[%clk 0:02:56.9]} 8. Bc4
{[%clk 0:02:54.4]} 8... e6 {[%clk 0:02:56.6]} 9. O-O {[%clk 0:02:54]} 9... Be7
{[%clk 0:02:56.3]} 10. Ne5 {[%clk 0:02:53.5]} 10... O-O {[%clk 0:02:55.1]} 11.
Bg5 {[%clk 0:02:51.5]} 11... Nbd7 {[%clk 0:02:54.6]} 12. Re1 {[%clk 0:02:50.2]}
12... Rc8 {[%clk 0:02:52.6]} 13. Qe2 {[%clk 0:02:48]} 13... h6 {[%clk
0:02:39.2]} 14. Bh4 {[%clk 0:02:42.8]} 14... a6 {[%clk 0:02:35.7]} 15. Rad1
{[%clk 0:02:42.4]} 15... b5 {[%clk 0:02:33.9]} 16. Bb3 {[%clk 0:02:41]} 16...
Nb6 {[%clk 0:02:25.8]} 17. Bxf6 {[%clk 0:02:08]} 17... Bxf6 {[%clk 0:02:25.1]}
18. Ne4 {[%clk 0:02:08.2]} 18... Be7 {[%clk 0:02:17.1]} 19. Ng3 {[%clk 0:01:52]}
19... Bh7 {[%clk 0:02:12.6]} 20. Nxf7 {[%clk 0:01:48.4]} 20... Rxf7 {[%clk
0:02:03.8]} 21. Bxe6 {[%clk 0:01:46.8]} 21... Rc2 {[%clk 0:01:58]} 22. Bxf7+
{[%clk 0:01:41.9]} 22... Kxf7 {[%clk 0:01:54.1]} 23. Qe6+ {[%clk 0:01:29.8]}
23... Kf8 {[%clk 0:01:53.4]} 24. Nf5 {[%clk 0:01:26.8]} 24... Bf6 {[%clk
0:01:39.7]} 25. Nd6 {[%clk 0:01:05.2]} 25... Qe7 {[%clk 0:01:18.3]} 26. Qxe7+
{[%clk 0:00:18.5]} 26... Bxe7 {[%clk 0:01:19.2]} 27. Nb7 {[%clk 0:00:08.7]}
27... Nc4 {[%clk 0:01:17.7]} 28. b3 {[%clk 0:00:03.8]} 28... Nd6 {[%clk
0:01:13.8]} 29. Nxd6 {[%clk 0:00:01.2]} 29... Bxd6 {[%clk 0:01:14.7]} 30. Rc1
{[%clk 0:00:01.2]} 30... Rxa2 {[%clk 0:01:00.6]} 0-1

[Event "*** Titled Tuesday Blitz"]
[Site "Chess.com"]
[Date "2021.03.30"]
[Round "11"]
[White "MergenKakabaev"]
[Black "Yurovskykh_Oleksandr"]
[Result "0-1"]
[WhiteElo "2374"]
[BlackElo "2521"]
[TimeControl "180+1"]
[EndTime "12:07:33 PDT"]
[Termination "Yurovskykh_Oleksandr won by resignation"]

1. e4 {[%clk 0:03:00.9]} 1... c6 {[%clk 0:02:59.1]} 2. d4 {[%clk 0:03:00.3]}
2... d5 {[%clk 0:02:59.7]} 3. e5 {[%clk 0:03:00.8]} 3... Bf5 {[%clk 0:02:59.5]}
4. h4 {[%clk 0:03:00.9]} 4... h6 {[%clk 0:02:55]} 5. g4 {[%clk 0:03:00]} 5...
Bd7 {[%clk 0:02:54.8]} 6. Nc3 {[%clk 0:02:59.6]} 6... h5 {[%clk 0:02:54]} 7.
gxh5 {[%clk 0:02:58.9]} 7... Bf5 {[%clk 0:02:54.4]} 8. Be3 {[%clk 0:02:56.5]}
8... e6 {[%clk 0:02:54.2]} 9. Bd3 {[%clk 0:02:45.6]} 9... Bxd3 {[%clk
0:02:50.6]} 10. cxd3 {[%clk 0:02:46.5]} 10... Nh6 {[%clk 0:02:49.6]} 11. Nf3
{[%clk 0:02:30.5]} 11... Nf5 {[%clk 0:02:49.3]} 12. Ng5 {[%clk 0:02:30.4]} 12...
Nd7 {[%clk 0:02:36.5]} 13. Qg4 {[%clk 0:02:25.4]} 13... Qe7 {[%clk 0:02:10.4]}
14. O-O-O {[%clk 0:02:17.1]} 14... O-O-O {[%clk 0:02:10.2]} 15. Kb1 {[%clk
0:02:15.8]} 15... Kb8 {[%clk 0:02:10.4]} 16. Rc1 {[%clk 0:02:13.5]} 16... a6
{[%clk 0:02:10.1]} 17. Rhe1 {[%clk 0:02:05.8]} 17... Rc8 {[%clk 0:02:10.3]} 18.
f4 {[%clk 0:02:04.3]} 18... Qe8 {[%clk 0:02:10]} 19. Bf2 {[%clk 0:02:01.1]}
19... Be7 {[%clk 0:02:09.5]} 20. Re2 {[%clk 0:01:58.5]} 20... Bd8 {[%clk
0:01:49.8]} 21. Na4 {[%clk 0:01:55.1]} 21... f6 {[%clk 0:01:49.6]} 22. Nf3
{[%clk 0:01:49.6]} 22... Qxh5 {[%clk 0:01:46.9]} 23. Qxh5 {[%clk 0:01:48]} 23...
Rxh5 {[%clk 0:01:47.8]} 24. exf6 {[%clk 0:01:46.3]} 24... Bxf6 {[%clk
0:01:44.5]} 25. Rxe6 {[%clk 0:01:45.8]} 25... Rch8 {[%clk 0:01:38]} 26. Rg1
{[%clk 0:01:42.2]} 26... Kc7 {[%clk 0:01:29.2]} 27. a3 {[%clk 0:01:25.6]} 27...
b5 {[%clk 0:01:27.4]} 28. Nc5 {[%clk 0:01:23.5]} 28... Nxc5 {[%clk 0:01:27.3]}
29. dxc5 {[%clk 0:01:24.4]} 29... Kd7 {[%clk 0:01:27.9]} 30. Ree1 {[%clk
0:01:20.6]} 30... Re8 {[%clk 0:01:27.6]} 31. Rxe8 {[%clk 0:01:18.2]} 31... Kxe8
{[%clk 0:01:28.5]} 32. Kc2 {[%clk 0:01:17.7]} 32... Kf7 {[%clk 0:01:26.9]} 33.
Rg4 {[%clk 0:01:17.5]} 33... Rh8 {[%clk 0:01:26.3]} 34. Ne5+ {[%clk 0:01:09.5]}
34... Bxe5 {[%clk 0:01:26.3]} 35. fxe5 {[%clk 0:01:10.4]} 35... g6 {[%clk
0:01:20.5]} 36. d4 {[%clk 0:01:09.8]} 36... Ng7 {[%clk 0:01:20.7]} 37. Kd3
{[%clk 0:01:08.1]} 37... Ne6 {[%clk 0:01:20.5]} 38. Be3 {[%clk 0:01:07.7]} 38...
a5 {[%clk 0:01:12.1]} 39. Bg5 {[%clk 0:01:06.4]} 39... Rh5 {[%clk 0:00:54.9]}
40. Bf6 {[%clk 0:01:04.6]} 40... Rf5 {[%clk 0:00:54.5]} 41. Rg3 {[%clk
0:01:00.7]} 41... Rf2 {[%clk 0:00:48.3]} 42. Rh3 {[%clk 0:00:55.3]} 42... Rxb2
{[%clk 0:00:46.9]} 43. h5 {[%clk 0:00:55.1]} 43... Rb3+ {[%clk 0:00:46.9]} 0-1

[Event "*** Titled Tuesday Blitz"]
[Site "Chess.com"]
[Date "2021.03.30"]
[Round "11"]
[White "ShapkinAnatoliy"]
[Black "Cptn2"]
[Result "1-0"]
[WhiteElo "2657"]
[BlackElo "2519"]
[TimeControl "180+1"]
[EndTime "12:07:39 PDT"]
[Termination "ShapkinAnatoliy won by resignation"]

1. d4 {[%clk 0:02:55.2]} 1... Nf6 {[%clk 0:02:59.8]} 2. c4 {[%clk 0:02:55.4]}
2... b6 {[%clk 0:03:00.2]} 3. Nc3 {[%clk 0:02:54.8]} 3... Bb7 {[%clk 0:03:00.5]}
4. Qc2 {[%clk 0:02:54.2]} 4... d5 {[%clk 0:02:59.2]} 5. cxd5 {[%clk 0:02:55.1]}
5... Nxd5 {[%clk 0:02:59.7]} 6. e4 {[%clk 0:02:55.6]} 6... Nxc3 {[%clk
0:03:00.4]} 7. bxc3 {[%clk 0:02:56.1]} 7... e5 {[%clk 0:03:01.3]} 8. Nf3 {[%clk
0:02:55.9]} 8... exd4 {[%clk 0:02:50.4]} 9. Bc4 {[%clk 0:02:53.5]} 9... d3
{[%clk 0:02:46]} 10. Qb3 {[%clk 0:02:53]} 10... Qe7 {[%clk 0:02:43.9]} 11. Ng5
{[%clk 0:02:46]} 11... f6 {[%clk 0:02:37.8]} 12. Bf7+ {[%clk 0:02:41.8]} 12...
Kd8 {[%clk 0:02:38]} 13. Ne6+ {[%clk 0:02:32.1]} 13... Kc8 {[%clk 0:02:33.9]}
14. Nxf8 {[%clk 0:02:16.2]} 14... Qxe4+ {[%clk 0:02:31]} 15. Be3 {[%clk
0:02:16.6]} 15... Rxf8 {[%clk 0:02:30.9]} 16. O-O-O {[%clk 0:02:08.6]} 16... Nc6
{[%clk 0:02:20.5]} 17. Bd5 {[%clk 0:01:59.3]} 17... Na5 {[%clk 0:02:12.7]} 18.
Bxb7+ {[%clk 0:01:19.9]} 18... Kxb7 {[%clk 0:01:56.9]} 19. Qb5 {[%clk
0:00:56.6]} 19... Rad8 {[%clk 0:01:54.2]} 20. Rhe1 {[%clk 0:00:55.3]} 20... Rfe8
{[%clk 0:01:48.8]} 21. Bd2 {[%clk 0:00:19.1]} 21... Qc4 {[%clk 0:01:27]} 22.
Qxc4 {[%clk 0:00:07.6]} 22... Nxc4 {[%clk 0:01:27.9]} 23. Rxe8 {[%clk 0:00:06]}
23... Rxe8 {[%clk 0:01:28.8]} 24. Bf4 {[%clk 0:00:06.1]} 24... Re2 {[%clk
0:01:28.4]} 25. Rxd3 {[%clk 0:00:05.9]} 25... Rxf2 {[%clk 0:01:28.9]} 26. Bg3
{[%clk 0:00:05.6]} 26... Rxg2 {[%clk 0:01:29.3]} 27. Rd7 {[%clk 0:00:06.2]}
27... a5 {[%clk 0:01:26.8]} 28. Rxc7+ {[%clk 0:00:06.1]} 28... Ka6 {[%clk
0:01:27.4]} 29. Rxc4 {[%clk 0:00:06.9]} 29... Kb5 {[%clk 0:01:27.6]} 30. Rc7
{[%clk 0:00:07.1]} 30... g5 {[%clk 0:01:27.4]} 31. Rxh7 {[%clk 0:00:08]} 31...
f5 {[%clk 0:01:27.4]} 32. Rh5 {[%clk 0:00:08.3]} 32... Kc4 {[%clk 0:01:24.6]}
33. Rxg5 {[%clk 0:00:08.6]} 33... Kd3 {[%clk 0:01:24.4]} 34. Rxf5 {[%clk
0:00:08.2]} 34... Kxc3 {[%clk 0:01:24.7]} 35. Rf3+ {[%clk 0:00:08.4]} 35... Kc4
{[%clk 0:01:24.9]} 36. Rf2 {[%clk 0:00:08.7]} 36... Rg1+ {[%clk 0:01:24.7]} 37.
Kc2 {[%clk 0:00:09.4]} 37... b5 {[%clk 0:01:25.5]} 38. Rf4+ {[%clk 0:00:09.6]}
38... Kc5 {[%clk 0:01:10.3]} 39. Bf2+ {[%clk 0:00:09.4]} 1-0